Cogmind - Beta 11.1 @@@ ROGUE MODE // 2022.06.14 @ 17:22:09 Player: Demise Result: Destroyed by as-88413 with Assembled Heavy Rifle Performance ------------- Evolutions (0) 0 Regions Visited (2) 400 Robots Destroyed (62) 310 Value Destroyed (1076) 1076 Prototype IDs (3) 60 Alien Tech Used (0) 0 Bonus (83) 83 TOTAL SCORE: 1929 Bonus ------- High Alert Combat Kills 83 Cogmind --------- Core Integrity 0/250 Matter 71/300 Energy 84/100 System Corruption 1% Temperature Cool (0) Movement Rolling (200) Ox8 Location -10/Mines Parts ------- > --- POWER (1) -------- (None) > --- PROPULSION (2) --- Wheel > --- UTILITY (2) ------ Huge Storage Unit Seismic Detector > --- WEAPON (2) ------- Assault Rifle Autogun > --- INVENTORY (25) --- Wheel Wheel Wheel Wheel Wheel Signal Interpreter Signal Interpreter Improved Terrain Scanner Seismic Detector Targeting Computer Core Shielding Core Shielding Core Shielding Core Shielding Core Shielding Hacking Suite Tractor Beam Autogun Autogun Datajack Mace Peak State ------------ > --- POWER ------------ Ion Engine > --- PROPULSION ------- Wheel Wheel > --- UTILITY ---------- Huge Storage Unit Seismic Detector > --- WEAPON ----------- Autogun Autogun > --- INVENTORY -------- Wheel Wheel Wheel Wheel Wheel Signal Interpreter Signal Interpreter Improved Terrain Scanner Seismic Detector Targeting Computer Core Shielding Core Shielding Core Shielding Core Shielding Core Shielding Hacking Suite Tractor Beam Light Assault Rifle Autogun Autogun Grenade Launcher Rocket Launcher Datajack Mace [Rating: 12] Favorites ----------- Power Ion Engine Engine Ion Engine Propulsion Wheel Treads Light Treads Wheel Wheel Utility Seismic Detector Device Seismic Detector Storage Huge Storage Unit Processor Signal Interpreter Weapon Assault Rifle Ballistic Gun Assault Rifle Launcher Grenade Launcher Build | -11 -10 -10 ------- Run | Scr Mat Min Slots Evolved . | . . . Power . | . . . Propulsion . | . . . Utility . | . . . Weapon . | . . . Parts Attached 49 | 10 34 5 Power 6 | 1 5 . Engine 6 | 1 5 . Core . | . . . Reactor . | . . . Propulsion 9 | 3 5 1 Treads 1 | 1 . . Leg . | . . . Wheel 8 | 2 5 1 Hover . | . . . Flight . | . . . Utility 11 | 4 7 . Device 5 | 3 2 . Storage 5 | 1 4 . Processor 1 | . 1 . Hackware . | . . . Protection . | . . . Artifact . | . . . Weapon 23 | 2 17 4 Energy Gun . | . . . Energy Cannon . | . . . Ballistic Gun 14 | 2 10 2 Ballistic Cannon . | . . . Launcher 9 | . 7 2 Special Weapon . | . . . Impact Weapon . | . . . Slashing Weapon . | . . . Piercing Weapon . | . . . Special Melee Weapon . | . . . Unidentified Prototypes . | . . . Parts Lost 8 | . 2 6 Power 2 | . 1 1 Propulsion 2 | . . 2 Utility . | . . . Weapon 4 | . 1 3 Highest Loss Streak 6 | . 2 6 To Critical Strikes . | . . . Average Slot Usage (%) 98 | . 98 94 Engine 13 | . 13 11 Wheel 27 | . 28 25 Device 12 | . 12 14 Storage 14 | . 14 14 Processor 1 | . 1 . Ballistic Gun 26 | . 26 26 Launcher 1 | . 1 1 Naked Turns . | . . . Heaviest Build 92 | 13 92 90 Greatest Support 20 | 20 20 20 Greatest Overweight (x) 8 | . 4 8 Average Overweight (x) 2 | . 2 4 Largest Inventory Capacity 25 | 8 25 25 Average Capacity 20 | 5 20 25 Most Carried 25 | 8 25 25 Average Carried 18 | 4 19 24 Final Capacity 25 | 8 25 25 Final Carried 25 | 8 25 21 Class Distribution -------------------- 58% | Scavenger-Mutant 41% | Mutant Dominant Class ---------------- Scavenger-Mutant | -10/Materials Scavenger-Mutant | -10/Mines Resources | -11 -10 -10 ----------- Run | Scr Mat Min Matter Collected 1699 | 398 1248 53 Remotely 230 | 230 . . Salvage Created 1820 | 239 1509 72 Parts 120 | 12 106 2 Haulers Intercepted 2 | . 2 . Recyclers Shooed 1 | . 1 . Parts Field Recycled . | . . . Retrieved Matter . | . . . Parts Self-Destructed . | . . . Prevented . | . . . Kills | -11 -10 -10 ------- Run | Scr Mat Min Combat Hostiles Destroyed 39 | . 29 10 Guns 16 | . 13 3 AOE 23 | . 16 7 Classes Destroyed 10 | 3 6 1 Worker 12 | 2 10 . Builder 6 | . 6 . Tunneler 5 | 5 . . Hauler 2 | . 2 . Recycler 5 | 1 4 . Operator 1 | . 1 . Watcher 3 | . 3 . Swarmer 6 | . 6 . Grunt 24 | . 23 1 Assembled 9 | . . 9 Best Kill Streak 9 | 6 5 9 Combat Bots Only 9 | . 3 9 Max Kills in Single Turn 3 | 1 3 3 Gunslinging . | . . . Exploded 3 | . 3 3 Melee . | . . . Uniques/NPCs Destroyed . | . . . Combat | -11 -10 -10 -------- Run | Scr Mat Min Damage Taken 1107 | . 579 528 Core 262 | . 154 108 Absorbed by Shields . | . . . Regen/Repaired (Parts) 110 | . 110 . Core Remaining (%) 100 | 100 . . Volleys Fired 191 | 18 157 16 Largest 2 | 2 2 2 Hottest 46 | 40 46 46 Shots Fired 355 | 36 292 27 Gun 329 | 36 271 22 Cannon . | . . . Launcher 26 | . 21 5 Special . | . . . Kinetic 329 | 36 271 22 Thermal . | . . . Explosive 26 | . 21 5 Electromagnetic . | . . . Robot Hit Streak 8 | 7 8 2 Robot Miss Streak 5 | 1 5 3 Penetration Max . | . . . Secondary Targets . | . . . Shots Hit Robots 181 | 24 149 8 Core Hits 106 | 9 79 18 Critical Kills 2 | . 2 . Critical Parts Destroyed 1 | . 1 . Critical Strikes 3 | . 3 . Destroy 3 | . 3 . Melee Attacks . | . . . Impact . | . . . Slashing . | . . . Piercing . | . . . Sneak Attacks . | . . . Combat Hostiles . | . . . Follow-up Attacks . | . . . Damage Inflicted 3818 | 352 2863 603 Guns 2295 | 352 1842 101 Cannons . | . . . Explosions 1523 | . 1021 502 Melee . | . . . Ramming . | . . . Kinetic 2295 | 352 1842 101 Thermal . | . . . Explosive 1523 | . 1021 502 Electromagnetic . | . . . Impact . | . . . Slashing . | . . . Piercing . | . . . Highest Corruption 1 | . 1 1 Average Corruption 1 | . 1 1 Corruption Purged . | . . . Corruption Blocked . | . . . Effects 5 | . 4 1 Message Errors 1 | . 1 . Matter Fused 1 | . 1 . Heat Flow Errors 1 | . . 1 Data Loss (minor) 1 | . 1 . Alerts 1 | . 1 . Overload Shots . | . . . Overflow Damage 75 | . 24 51 Projectiles . | . . . Explosions 75 | . 24 51 Melee . | . . . Knockbacks . | . . . Impact . | . . . Kinetic . | . . . Secondary . | . . . Self-Inflicted Damage 117 | . . 117 Shots 4 | . . 4 Rammed . | . . . Targets Rammed . | . . . Kicked . | . . . Crushed . | . . . Highest Temperature 105 | . 24 105 Average Temperature 9 | . 6 28 Received Heat Transfer 363 | . 297 66 Siege Activations . | . . . Robots Corrupted . | . . . Combat Hostiles . | . . . Parts Fried . | . . . Impact Corruptions . | . . . Robots Melted . | . . . Combat Hostiles . | . . . Parts Melted . | . . . Heat Transferred . | . . . Parts Sabotaged . | . . . Parts Stolen . | . . . Parts Stripped . | . . . Power Chain Reactions . | . . . Missiles Intercepted . | . . . Alert | -11 -10 -10 ------- Run | Scr Mat Min Peak Influence 831 | 40 831 419 Initial 307 | . 26 307 Average 265 | 22 274 353 Maximum Alert Level 3 | . 3 2 Low Security (%) 50 | 100 51 . Level 1 20 | . 16 82 Level 2 22 | . 24 17 Level 3 5 | . 6 . Level 4 . | . . . Level 5 . | . . . High Security . | . . . Max Security . | . . . Squads Dispatched 9 | . 8 1 Investigation 8 | . 7 1 Extermination . | . . . Reinforcement 1 | . 1 . Assault . | . . . Garrison . | . . . Intercept . | . . . Searches Triggered . | . . . Construction Impeded . | . . . Haulers Reinforced . | . . . Active Scanning Responses . | . . . Cargo Convoy Interrupts . | . . . Stealth | -11 -10 -10 --------- Run | Scr Mat Min Distress Signals 2 | . 2 . Communications Jammed . | . . . Distress Signals . | . . . Times Spotted 50 | . 40 10 Peak Tracking Total 8 | . 3 8 Tactical Retreats 1 | . 1 . Traps | -11 -10 -10 ------- Run | Scr Mat Min Traps Triggered 2 | . 2 . Indirectly . | . . . Trap Hack Attempts . | . . . Triggered . | . . . Disarmed 1 | . 1 . Reprogrammed . | . . . Reused . | . . . Traps Extracted . | . . . Installed . | . . . Triggered . | . . . Machines | -11 -10 -10 ---------- Run | Scr Mat Min Machines Disabled 8 | . 7 1 Max in Single Turn 2 | . 2 1 Machines Sabotaged . | . . . Garrisons Compromised . | . . . Overloaded Fab Kills . | . . . Hacking | -11 -10 -10 --------- Run | Scr Mat Min Machines Accessed 11 | . 10 1 Terminals 8 | . 7 1 Fabricators . | . . . Repair Stations 1 | . 1 . Recycling Units 2 | . 2 . Scanalyzers . | . . . Garrison Access . | . . . Total Hacks 44 | . 39 5 Successful 24 | . 23 1 Failed 19 | . 15 4 Catastrophic 2 | . 2 . Database Lockouts 1 | . 1 . Manual 31 | . 26 5 Terminals 37 | . 32 5 Fabricators . | . . . Repair Stations 4 | . 4 . Recycling Units 3 | . 3 . Scanalyzers . | . . . Garrison Access . | . . . Terminal Hacks 10 | . 9 1 Record 1 | . 1 . Robot Analysis 5 | . 4 1 Prototype ID Bank 1 | . 1 . Terminal Index 1 | . 1 . Disarm Traps 1 | . 1 . Hauler Manifests 1 | . 1 . Fabricator Hacks . | . . . Repair Station Hacks 4 | . 4 . Scan Component 2 | . 2 . Repair 2 | . 2 . Recycling Unit Hacks 1 | . 1 . Retrieve Components 1 | . 1 . Scanalyzer . | . . . Garrison Access Hacks . | . . . Unauthorized Hacks 9 | . 9 . Terminals 7 | . 7 . Track 1 | . 1 . Assimilate 1 | . 1 . Botnet 4 | . 4 . Operators 1 | . 1 . Fabricators . | . . . Repair Stations . | . . . Recycling Units 2 | . 2 . Tunnel 2 | . 2 . Scanalyzers . | . . . Garrison Access . | . . . Data Cores Recovered . | . . . Used . | . . . Hacking Detections 9 | . 8 1 Full Trace Events 9 | . 8 1 Feedback Events 1 | . 1 . Corruption 1 | . 1 . Feedback Blocked . | . . . Robot Schematics Acquired . | . . . Robots Built . | . . . Authchips . | . . . Time . | . . . Total Robot Build Rating . | . . . Part Schematics Acquired . | . . . Parts Built . | . . . Authchips . | . . . Time . | . . . Total Part Build Rating . | . . . Parts Repaired 2 | . 2 . Time 52 | . 52 . Parts Recycled . | . . . Recycled Matter . | . . . Retrieved Matter . | . . . Retrieved Components 9 | . 9 . Parts Scanalyzed . | . . . Part Schematics Acquired . | . . . Parts Damaged . | . . . Bothacking | -11 -10 -10 ------------ Run | Scr Mat Min Used RIF Installer . | . . . Robots Hacked . | . . . Non-combat . | . . . Combat . | . . . Robot Hacks Applied . | . . . Relay Couplers Released . | . . . Fabnet Peak Effective % . | . . . Robots Rewired . | . . . Allies Hacked . | . . . Hacks Repelled . | . . . Allies | -11 -10 -10 -------- Run | Scr Mat Min Total Allies 1 | . 1 . Largest Group 1 | . 1 . Highest-Rated Group 10 | . 10 . Highest-Rated Ally 10 | . 10 . Total Orders . | . . . Ally Attacks . | . . . Total Damage . | . . . Kills . | . . . Allies Corrupted . | . . . Allies Melted . | . . . Intel | -11 -10 -10 ------- Run | Scr Mat Min Robot Analysis Total 5 | . 4 1 Derelict Logs Recovered 1 | . . 1 Drone Launches . | . . . Drone Recoveries . | . . . Exploration | -11 -10 -10 ------------- Run | Scr Mat Min Turns Passed 2806 | 165 2434 207 Spaces Moved 1727 | 104 1510 113 Core 12 | 12 . . Treads 3 | 3 . . Legs . | . . . Wheels 1712 | 89 1510 113 Hover . | . . . Flight . | . . . Fastest Speed 50 | 50 80 140 Average Speed 116 | 78 117 141 Slowest Speed 200 | 160 140 200 Overloaded Moves . | . . . Propulsion Burnouts . | . . . Robots Hopped . | . . . Cave-ins Triggered . | . . . Exploration Rate (%) 42 | 4 99 23 Regions Visited 2 Branch Regions 1 Pre-discovered Areas 2 | . 2 . Known Exits Taken 1 | . 1 . Unknown Exits Taken 1 | 1 . . Scrap Searched . | . . . Spaces Dug 15 | . 5 10 Terrain Destroyed 167 | . 120 47 Melee . | . . . Projectile . | . . . AOE 167 | . 120 47 Terrain Rammed . | . . . Walls Destroyed . | . . . Machines Disabled . | . . . Actions | -11 -10 -10 --------- Run | Scr Mat Min Total 2199 | 151 1913 135 Wait 160 | . 159 1 Move 1725 | 103 1509 113 Hop . | . . . Pick Up 44 | 13 31 . Fast Attach 14 | 7 7 . Attach 11 | 2 5 4 Detach 4 | 1 3 . Swap 24 | 1 22 1 Drop 26 | 6 20 . Fire 191 | 18 157 16 Melee . | . . . Ram . | . . . Kick . | . . . Crush . | . . . Escape Stasis . | . . . Rewire . | . . . Trap . | . . . Miscellaneous . | . . . Route ------- -11/Scrapyard -10/Materials (discovered 5 exits: *Mat x3 / *Min x2) -10/Mines (discovered 1 exit: *Mat) History --------- Turn | Location | Event 8 | -11/Scrapyard | Discovered new exit (range 15) 166 | -11/Scrapyard | Entered Materials 306 | -10/Materials | Discovered new exit (range 15) 314 | -10/Materials | Build established: Mutant 355 | -10/Materials | Identified exit to Mines 381 | -10/Materials | Discovered new exit (range 12) 392 | -10/Materials | Identified exit to Materials 449 | -10/Materials | Repaired Assault Rifle 888 | -10/Materials | Discovered exit to Materials (range 16) 1041 | -10/Materials | Discovered exit to Materials (range 15) 1141 | -10/Materials | Central database locked down 1232 | -10/Materials | Discovered exit to Mines (range 15) 1371 | -10/Materials | Build established: Scavenger-Mutant 1882 | -10/Materials | Repaired Assault Rifle 2292 | -10/Materials | Core integrity fell below 50% 2600 | -10/Materials | Entered Mines 2607 | -10/Mines | Received a Rocket Launcher from a helpful Derelict 2652 | -10/Mines | Discovered exit to Materials (range 3) 2705 | -10/Mines | Learned Materials emergency access door positions 2745 | -10/Mines | Assembled infested the area 2784 | -10/Mines | Core integrity fell below 20% 2807 | -10/Mines | Destroyed by as-88413 with Assembled Heavy Rifle Last Messages --------------- 02769_ as-16870 destroyed. 02769_ Destroyed Asb. Hover Unit. 02769_ Lgt. Ion Engine destroyed. 02769_ Destroyed Lgt. Ion Engine. 02771_ as-77901 destroyed. 02771_ as-08105 destroyed. 02771_ Destroyed Asb. Hover Unit. 02771_ as-10134 destroyed. 02772_ Autogun destroyed. 02773_ Rocket Launcher destroyed. 02773_ Destroyed Rocket Launcher. 02773_ Wheel destroyed. 02773_ Destroyed Wheel. 02779_ The unstable cave ceiling collapses. 02779_ as-97170 destroyed. 02790_ as-47950 destroyed. 02793_ The unstable cave ceiling collapses. 02793_ Acquired 20 matter. 02793_ Wheel destroyed. 02802_ The unstable cave ceiling collapses. Map ----- +----------------------------------------------------+ | ???????????????????????????????????????????????? | | ???????????????????????????????????????????????? | | ???????????????????????????????????????????????? | | ???????????????????????????????????????????????? | | ???????????????????????????????????????????????? | | ???????????????????????????????????????????????? | | ???????????????????????????????????????????????? | | ???????????????????????????????????????????????? | | ???????????????????????????????????????????????? | | ???????????????????????????????????????????????? | | ##?????????????????????? ???? ???????????? | | ##?????????????????????!%=??? ?????????? | | ##???????????????????? = #?? #????????? | | ##??????????????????? #?? ##???????? | | ########????????????a ???# ##??????? | | #???????????? ???# ???????? | | ^ ## #????####???? ???# ????????? | | ## # # #??### ##??? ???# ?????????? | | ?#### # #^#### #??? ???# ??????????? | | ????#^ # # ##?? #???? ???????????? | | ????# ^ #??# ##??? ##??????????? | | ????##### ####r ##??# % ##?????????? | | ????????## ### ### #### #?????????? | | ?????????# ##?# ## # ##????????? | | ?????????## ##??# # # #??? | | ??????????####???# @ $ #??? | | ?????????????????# % #??? | | ?????????????????##### #### ##??? | | ?????????????????????# # ## ##?????????? | | ?????????????????????###### ##### ##??????????? | | ???????????????????????????##????###???????????? | | ???????????????????????????????????????????????? | | | | | | | | | | | | | | | | | | | | | | | | | | | | | | | | | | | | | +----------------------------------------------------+ Best States ------------- Heat Dissipation 25 Energy Generation 10 Energy Capacity 250 Matter Stores 300 Matter Capacity 300 Sight Range 16 Terrain Scan Density 10 Evasion (%) 50 Recoil Reduction 1 Item Schematics ----------------- None Robot Schematics ------------------ None Fabricated ------------ Nothing Alien Tech Used ----------------- None Achievements -------------- None Challenges ------------ None Game ------ Seed ShockBombDoublenader Manual? 0 Play Time 00:23:30 Cumulative 596.5 hours Start 2022.06.14 @ 17:00:15 End 2022.06.14 @ 17:22:09 Sessions 1 Manual Loads 0 Difficulty Rogue Special Mode None Game No. 479 Rogue 479 Adventurer 0 Explorer 0 Win Type - Total 5 Types 4/0/0/1/0/0/0/0/0 Lore% 71 Gallery% 84 Achievement% 66 Wizard Run 0 Options --------- ASCII 0 Keyboard 1 Movement Numpad Keybinds 0 Fullscreen 1 Font 12/Terminus Map View 83x54 Tactical HUD 1 Map Filters NONE Filters NONE Steam 1 RUN: 521733e5-17bd-4412-9158-64ab6f046b4c